[Event "7. Arber-Senioren-Cup 2019"]
[Site "Bodenmais"]
[Date "2019.08.04"]
[Round "9.11"]
[White "Oberhofer, Max"]
[Black "Mahnke, Ralf"]
[Result "1/2-1/2"]
[ECO "D02"]
[WhiteElo "2187"]
[BlackElo "1925"]
[Annotator "NA"]
[PlyCount "44"]
[EventDate "2019.07.27"]
[EventType "swiss"]
[EventCountry "GER"]
[SourceTitle "playchess.com"]
[Source "ChessBase"]
[SourceQuality "1"]
[TimeControl "60/7800+30:0"]

1. d4 {[%emt 0:00:00]} d5 {[%emt 0:00:00]} 2. Nf3 {[%emt 0:00:00]} Nf6 {[%emt 0:00:00]} 3. c4 {[%emt 0:00:03]} e6 {[%emt 0:00:00]} 4. g3 {[%emt 0:00:18]} c6 {[%emt 0:00:24]} 5. Bg2 {[%emt 0:00:17]} Bd6 {[%emt 0:02:01]} 6. Qc2 {[%emt 0:01:13]} O-O {[%emt 0:00:43]} 7. Nbd2 {[%emt 0:00:24]} Nbd7 {[%emt 0:00:28]} 8. O-O {[%emt 0:00:20]} b6 {[%emt 0:02:42]} 9. b3 {[%emt 0:00:15]} Bb7 {[%emt 0:00:23]} 10. Bb2 {[%emt 0:00:35]} Rc8 {[%emt 0:00:33]} 11. e4 {[%emt 0:10:49]} dxe4 {[%emt 0:02:03]} 12. Ng5 {[%emt 0:01:17]} c5 {[%emt 0:01:39]} 13. Ngxe4 {[%emt 0:03:52]} Nxe4 {[%emt 0:01:44]} 14. Nxe4 {[%emt 0:00:08]} Bxe4 {[%emt 0:02:41]} 15. Bxe4 {[%emt 0:00:22]} Nf6 {[%emt 0:00:12]} 16. Bd3 {[%emt 0:06:24]} cxd4 {[%emt 0:02:09]} 17. Bxd4 {[%emt 0:01:05]} h6 {[%emt 0:00:56]} 18. Rad1 {[%emt 0:02:36]} Qe7 {[%emt 0:00:59]} 19. Rfe1 {[%emt 0:07:13]} Rfd8 {[%emt 0:01:25]} 20. Qb2 {[%emt 0:01:28]} Bc5 {[%emt 0:02:13]} 21. Bxf6 {[%emt 0:07:03]} Qxf6 {[%emt 0:00:18]} 22. Qxf6 {[%emt 0:00:56]} gxf6 {[%emt 0:00:23]} 1/2-1/2

[Event "7. Arber-Senioren-Cup 2019"]
[Site "Bodenmais"]
[Date "2019.08.04"]
[Round "9.12"]
[White "Augustin, Christian"]
[Black "Zwetz, Anita"]
[Result "1-0"]
[ECO "D05"]
[WhiteElo "1971"]
[BlackElo "1828"]
[Annotator "NA"]
[PlyCount "49"]
[EventDate "2019.07.27"]
[EventType "swiss"]
[EventCountry "GER"]
[SourceTitle "playchess.com"]
[Source "ChessBase"]
[SourceQuality "1"]
[TimeControl "60/7800+30:0"]

1. d4 {[%emt 0:00:00]} d5 {[%emt 0:00:00]} 2. e3 {[%emt 0:00:00]} Nf6 {[%emt 0:00:00]} 3. Nf3 {[%emt 0:00:38]} e6 {[%emt 0:00:00]} 4. Bd3 {[%emt 0:00:11]} Nbd7 {[%emt 0:01:34]} 5. Nbd2 {[%emt 0:00:16]} c5 {[%emt 0:00:55]} 6. c3 {[%emt 0:00:07]} c4 {[%emt 0:00:18]} 7. Bc2 {[%emt 0:00:12]} Bd6 {[%emt 0:00:06]} 8. O-O {[%emt 0:02:05]} Qc7 {[%emt 0:01:42]} 9. Qe2 {[%emt 0:00:56]} O-O {[%emt 0:01:16]} 10. e4 {[%emt 0:08:36]} dxe4 {[%emt 0:00:24]} 11. Nxe4 {[%emt 0:00:40]} Nxe4 {[%emt 0:00:10]} 12. Qxe4 {[%emt 0:00:13]} Nf6 {[%emt 0:00:08]} 13. Qh4 {[%emt 0:00:13]} Be7 {[%emt 0:05:21]} 14. Re1 {[%emt 0:07:25]} g6 {[%emt 0:05:47]} 15. Bg5 {[%emt 0:32:01]} Nd5 {[%emt 0:03:16]} 16. Qh6 {[%emt 0:07:40]} Re8 {[%emt 0:07:21]} 17. Be4 {[%emt 0:07:22]} f5 {[%emt 0:03:09]} 18. Bxd5 {[%emt 0:02:11]} exd5 {[%emt 0:00:02]} 19. Bf6 {[%emt 0:00:22]} Bf8 {[%emt 0:02:22]} 20. Rxe8 {[%emt 0:00:21]} Qf7 {[%emt 0:00:04]} 21. Rxf8+ {[%emt 0:01:06]} Qxf8 {[%emt 0:00:01]} 22. Qxf8+ {[%emt 0:01:01]} Kxf8 {[%emt 0:00:00]} 23. Re1 {[%emt 0:00:24]} Kf7 {[%emt 0:00:32]} 24. Bg5 {[%emt 0:00:18]} Be6 {[%emt 0:00:24]} 25. Ne5+ {[%emt 0:01:09]} 1-0

[Event "7. Arber-Senioren-Cup 2019"]
[Site "Bodenmais"]
[Date "2019.08.04"]
[Round "9.13"]
[White "Braeu, Ludwig"]
[Black "Benischek, Wolfgang"]
[Result "0-1"]
[ECO "A20"]
[WhiteElo "1818"]
[BlackElo "2022"]
[Annotator "NA"]
[PlyCount "40"]
[EventDate "2019.07.27"]
[EventType "swiss"]
[EventCountry "GER"]
[SourceTitle "playchess.com"]
[Source "ChessBase"]
[SourceQuality "1"]
[TimeControl "60/7800+30:0"]

1. c4 {[%emt 0:00:00]} e5 {[%emt 0:00:09]} 2. g3 {[%emt 0:00:00]} Nc6 {[%emt 0:00:31]} 3. Bg2 {[%emt 0:00:38]} Bc5 {[%emt 0:01:06]} 4. e3 {[%emt 0:01:15]} d6 {[%emt 0:02:02]} 5. Ne2 {[%emt 0:00:47]} Bg4 {[%emt 0:01:51]} 6. Nbc3 {[%emt 0:04:03]} a6 {[%emt 0:01:04]} 7. O-O {[%emt 0:03:15]} Qc8 {[%emt 0:02:50]} 8. Re1 {[%emt 0:04:21]} Nf6 {[%emt 0:00:39]} 9. f3 {[%emt 0:03:58]} Bh3 {[%emt 0:03:17]} 10. d4 {[%emt 0:01:20]} Bxg2 {[%emt 0:01:41]} 11. Kxg2 {[%emt 0:00:35]} Ba7 {[%emt 0:00:33]} 12. a3 {[%emt 0:05:10]} O-O {[%emt 0:00:58]} 13. b4 {[%emt 0:01:07]} Qf5 {[%emt 0:04:22]} 14. Nd5 {[%emt 0:06:19]} Nxd5 {[%emt 0:01:57]} 15. cxd5 {[%emt 0:00:15]} Ne7 {[%emt 0:00:18]} 16. e4 {[%emt 0:02:57]} Qg6 {[%emt 0:02:33]} 17. dxe5 {[%emt 0:01:04]} dxe5 {[%emt 0:00:16]} 18. Bb2 {[%emt 0:00:15]} f5 {[%emt 0:02:41]} 19. Ng1 {[%emt 0:02:58]} fxe4 {[%emt 0:02:49]} 20. Rxe4 Nf5 0-1

[Event "7. Arber-Senioren-Cup 2019"]
[Site "Bodenmais"]
[Date "2019.08.04"]
[Round "9.14"]
[White "Limberg, Siegfried"]
[Black "Hilbig, Dieter"]
[Result "1/2-1/2"]
[ECO "D04"]
[WhiteElo "1983"]
[BlackElo "1943"]
[Annotator "NA"]
[PlyCount "94"]
[EventDate "2019.07.27"]
[EventType "swiss"]
[EventCountry "GER"]
[SourceTitle "playchess.com"]
[Source "ChessBase"]
[SourceQuality "1"]
[TimeControl "60/7800+30:0"]

1. d4 d5 {[%emt 0:00:00]} 2. Nf3 {[%emt 0:00:00]} Nf6 {[%emt 0:00:00]} 3. e3 {[%emt 0:00:05]} Bf5 {[%emt 0:01:03]} 4. Bd3 {[%emt 0:00:27]} Bxd3 {[%emt 0:01:23]} 5. Qxd3 {[%emt 0:00:21]} c6 {[%emt 0:01:11]} 6. O-O {[%emt 0:00:29]} g6 {[%emt 0:00:25]} 7. b3 {[%emt 0:00:49]} Bg7 {[%emt 0:00:23]} 8. Bb2 {[%emt 0:00:36]} Nbd7 {[%emt 0:00:53]} 9. c4 {[%emt 0:01:03]} O-O {[%emt 0:00:32]} 10. Nbd2 {[%emt 0:02:03]} Re8 {[%emt 0:04:13]} 11. h3 {[%emt 0:01:35]} c5 {[%emt 0:03:15]} 12. cxd5 {[%emt 0:09:54]} Nxd5 {[%emt 0:01:02]} 13. a3 {[%emt 0:06:20]} cxd4 {[%emt 0:03:18]} 14. exd4 {[%emt 0:02:31]} Rc8 {[%emt 0:02:45]} 15. Rac1 {[%emt 0:01:41]} N7f6 {[%emt 0:03:30]} 16. Rxc8 {[%emt 0:01:57]} Qxc8 {[%emt 0:00:08]} 17. Rc1 {[%emt 0:00:51]} Qe6 {[%emt 0:03:15]} 18. Re1 {[%emt 0:02:04]} Qd6 {[%emt 0:07:58]} 19. Nc4 {[%emt 0:06:08]} Qb8 {[%emt 0:01:55]} 20. Nce5 {[%emt 0:03:58]} Nf4 {[%emt 0:04:47]} 21. Qc4 {[%emt 0:02:11]} N6d5 {[%emt 0:02:48]} 22. Qf1 {[%emt 0:05:02]} Rc8 {[%emt 0:02:14]} 23. g3 {[%emt 0:00:56]} Rc2 {[%emt 0:02:31]} 24. Ba1 {[%emt 0:01:08]} Nh5 25. Qd3 {[%emt 0:00:50]} Qc8 {[%emt 0:04:44]} 26. Nc4 {[%emt 0:11:22]} Qf5 {[%emt 0:26:14]} 27. Qxf5 {[%emt 0:09:20]} gxf5 {[%emt 0:00:07]} 28. Kg2 {[%emt 0:01:32]} Ra2 {[%emt 0:01:13]} 29. a4 {[%emt 0:01:16]} Nhf6 {[%emt 0:01:10]} 30. Bb2 {[%emt 0:08:01]} Ne4 {[%emt 0:06:00]} 31. Ra1 {[%emt 0:00:29]} Rxa1 {[%emt 0:00:19]} 32. Bxa1 {[%emt 0:00:10]} Nb4 {[%emt 0:00:08]} 33. Ne1 {[%emt 0:02:57]} Bh6 {[%emt 0:04:05]} 34. f4 {[%emt 0:10:00]} Bg7 {[%emt 0:01:18]} 35. Kf3 {[%emt 0:02:22]} Kf8 {[%emt 0:01:05]} 36. g4 {[%emt 0:00:20]} Nc5 {[%emt 0:02:18]} 37. Nd2 {[%emt 0:05:02]} Ne6 {[%emt 0:03:16]} 38. gxf5 {[%emt 0:02:51]} Nxd4+ {[%emt 0:02:31]} 39. Ke4 {[%emt 0:02:39]} Ne2 {[%emt 0:06:01]} 40. Bxg7+ {[%emt 0:00:40]} Kxg7 {[%emt 0:00:06]} 41. Kf3 {[%emt 0:02:53]} Nd4+ {[%emt 0:00:41]} 42. Ke4 {[%emt 0:00:27]} Nbc6 {[%emt 0:00:38]} 43. Nd3 {[%emt 0:02:45]} Ne2 {[%emt 0:12:33]} 44. Nf1 {[%emt 0:08:16]} Kf6 {[%emt 0:02:33]} 45. Nc5 {[%emt 0:00:45]} Nc3+ {[%emt 0:03:39]} 46. Kd3 {[%emt 0:01:55]} Nd5 {[%emt 0:00:13]} 47. Ke4 {[%emt 0:01:06]} Nc3+ 1/2-1/2

[Event "7. Arber-Senioren-Cup 2019"]
[Site "Bodenmais"]
[Date "2019.08.04"]
[Round "9.15"]
[White "Steiger, Michael"]
[Black "Waltenberger, Udo"]
[Result "1-0"]
[ECO "A37"]
[WhiteElo "2016"]
[BlackElo "1986"]
[Annotator "NA"]
[PlyCount "43"]
[EventDate "2019.07.27"]
[EventType "swiss"]
[EventCountry "GER"]
[SourceTitle "playchess.com"]
[Source "ChessBase"]
[SourceQuality "1"]
[TimeControl "60/7800+30:0"]

1. c4 {[%emt 0:00:00]} c5 {[%emt 0:00:00]} 2. Nc3 {[%emt 0:00:30]} g6 {[%emt 0:00:30]} 3. g3 {[%emt 0:00:30]} Bg7 {[%emt 0:00:30]} 4. Bg2 {[%emt 0:00:30]} Nc6 {[%emt 0:00:30]} 5. Nf3 {[%emt 0:00:30]} e5 {[%emt 0:00:30]} 6. O-O {[%emt 0:02:06]} Nge7 {[%emt 0:00:30]} 7. a3 {[%emt 0:00:30]} Rb8 {[%emt 0:00:40]} 8. Rb1 {[%emt 0:00:30]} a5 {[%emt 0:00:30]} 9. Ne1 {[%emt 0:01:39]} d6 {[%emt 0:01:32]} 10. Nc2 {[%emt 0:01:02]} Be6 {[%emt 0:00:30]} 11. Ne3 {[%emt 0:01:00]} O-O {[%emt 0:19:10]} 12. Ned5 {[%emt 0:04:45]} Bf5 {[%emt 0:04:09]} 13. d3 {[%emt 0:02:07]} Nxd5 {[%emt 0:00:30]} 14. cxd5 {[%emt 0:20:10]} Ne7 {[%emt 0:00:30]} 15. b4 {[%emt 0:00:30]} axb4 {[%emt 0:00:45]} 16. axb4 {[%emt 0:00:30]} cxb4 {[%emt 0:05:23]} 17. Rxb4 {[%emt 0:03:22]} b5 {[%emt 0:25:49]} 18. Rxb5 {[%emt 0:12:55]} Rxb5 {[%emt 0:00:30]} 19. Nxb5 {[%emt 0:00:30]} Qb6 {[%emt 0:11:25]} 20. Na3 {[%emt 0:04:18]} Rb8 {[%emt 0:14:54]} 21. Nc4 {[%emt 0:06:04]} Qc5 {[%emt 0:02:21]} 22. Ba3 {[%emt 0:04:01]} 1-0

[Event "7. Arber-Senioren-Cup 2019"]
[Site "Bodenmais"]
[Date "2019.08.04"]
[Round "9.16"]
[White "Schmidt, Matthias"]
[Black "Latzel, Wolfgang"]
[Result "1-0"]
[ECO "A41"]
[WhiteElo "2020"]
[BlackElo "1881"]
[Annotator "NA"]
[PlyCount "57"]
[EventDate "2019.07.27"]
[EventType "swiss"]
[EventCountry "GER"]
[SourceTitle "playchess.com"]
[Source "ChessBase"]
[SourceQuality "1"]
[TimeControl "60/7800+30:0"]

1. d4 {[%emt 0:00:00]} d6 {[%emt 0:00:00]} 2. Nf3 {[%emt 0:00:00]} g6 {[%emt 0:00:00]} 3. c4 {[%emt 0:00:00]} Bg7 {[%emt 0:00:00]} 4. Nc3 {[%emt 0:00:42]} Nc6 {[%emt 0:01:22]} 5. e4 {[%emt 0:01:04]} e5 {[%emt 0:00:20]} 6. Be3 {[%emt 0:01:46]} exd4 {[%emt 0:01:23]} 7. Nxd4 {[%emt 0:00:36]} Nge7 {[%emt 0:00:08]} 8. h4 {[%emt 0:02:40]} h6 {[%emt 0:15:44]} 9. Qd2 {[%emt 0:05:29]} f5 {[%emt 0:08:15]} 10. Nxc6 {[%emt 0:01:53]} bxc6 {[%emt 0:00:42]} 11. Bd4 {[%emt 0:07:04]} O-O {[%emt 0:04:18]} 12. Bxg7 {[%emt 0:00:16]} Kxg7 {[%emt 0:00:02]} 13. O-O-O {[%emt 0:01:09]} fxe4 {[%emt 0:08:16]} 14. h5 {[%emt 0:04:57]} g5 {[%emt 0:10:30]} 15. Nxe4 {[%emt 0:03:19]} Ng8 {[%emt 0:03:08]} 16. Bd3 {[%emt 0:03:12]} c5 {[%emt 0:15:23]} 17. Qc3+ {[%emt 0:07:37]} Nf6 {[%emt 0:00:11]} 18. Bc2 {[%emt 0:00:41]} Qe7 {[%emt 0:04:40]} 19. Rde1 {[%emt 0:06:32]} Qd8 {[%emt 0:11:53]} 20. Re3 {[%emt 0:03:18]} Kg8 {[%emt 0:00:57]} 21. Ng3 {[%emt 0:08:53]} Ng4 {[%emt 0:03:12]} 22. Qd3 {[%emt 0:03:03]} Rf7 {[%emt 0:04:27]} 23. Qg6+ {[%emt 0:07:00]} Kf8 {[%emt 0:02:40]} 24. Rf3 {[%emt 0:02:05]} Qe7 {[%emt 0:06:05]} 25. Qh7 {[%emt 0:03:31]} Rxf3 {[%emt 0:09:00]} 26. Qh8+ {[%emt 0:01:11]} Kf7 {[%emt 0:00:09]} 27. Bg6+ {[%emt 0:02:15]} Ke6 {[%emt 0:00:21]} 28. gxf3 {[%emt 0:00:48]} Bb7 {[%emt 0:05:52]} 29. Bf5+ {[%emt 0:02:33]} 1-0

[Event "7. Arber-Senioren-Cup 2019"]
[Site "Bodenmais"]
[Date "2019.08.04"]
[Round "9.17"]
[White "Loibl, Johann"]
[Black "Gerl, Hans"]
[Result "0-1"]
[ECO "B20"]
[WhiteElo "1760"]
[BlackElo "1955"]
[Annotator "NA"]
[PlyCount "42"]
[EventDate "2019.07.27"]
[EventType "swiss"]
[EventCountry "GER"]
[SourceTitle "playchess.com"]
[Source "ChessBase"]
[SourceQuality "1"]
[TimeControl "60/7800+30:0"]

1. e4 {[%emt 0:00:00]} c5 {[%emt 0:00:00]} 2. b4 {[%emt 0:00:00]} cxb4 {[%emt 0:00:00]} 3. a3 {[%emt 0:00:00]} e6 {[%emt 0:01:03]} 4. axb4 {[%emt 0:00:00]} Bxb4 {[%emt 0:00:18]} 5. c3 {[%emt 0:00:07]} Be7 {[%emt 0:01:29]} 6. d4 {[%emt 0:00:20]} d6 {[%emt 0:00:53]} 7. Nf3 {[%emt 0:00:28]} Nf6 {[%emt 0:01:23]} 8. Bd3 {[%emt 0:00:15]} O-O {[%emt 0:00:46]} 9. Qc2 {[%emt 0:01:39]} h6 {[%emt 0:01:05]} 10. Ba3 {[%emt 0:08:36]} Nc6 {[%emt 0:03:55]} 11. Nbd2 {[%emt 0:04:45]} Bd7 {[%emt 0:03:02]} 12. e5 {[%emt 0:09:15]} dxe5 {[%emt 0:01:18]} 13. dxe5 {[%emt 0:01:01]} Ng4 {[%emt 0:01:49]} 14. Nc4 {[%emt 0:04:04]} Bxa3 {[%emt 0:03:52]} 15. Rxa3 {[%emt 0:00:27]} Qc7 {[%emt 0:07:55]} 16. Qe2 {[%emt 0:04:53]} b5 {[%emt 0:01:00]} 17. Nd6 {[%emt 0:01:28]} a6 {[%emt 0:02:31]} 18. Qa2 {[%emt 0:09:40]} Ncxe5 {[%emt 0:03:19]} 19. Nxe5 {[%emt 0:06:05]} Nxe5 {[%emt 0:00:13]} 20. Qd2 {[%emt 0:03:07]} Bc6 {[%emt 0:02:51]} 21. Bxb5 {[%emt 0:06:14]} axb5 {[%emt 0:01:10]} 0-1

[Event "7. Arber-Senioren-Cup 2019"]
[Site "Bodenmais"]
[Date "2019.08.04"]
[Round "9.18"]
[White "Fleuch, Hans-Juergen"]
[Black "Klimpel, Siegfried"]
[Result "1-0"]
[ECO "B02"]
[WhiteElo "1951"]
[BlackElo "1843"]
[Annotator "NA"]
[PlyCount "57"]
[EventDate "2019.07.27"]
[EventType "swiss"]
[EventCountry "GER"]
[SourceTitle "playchess.com"]
[Source "ChessBase"]
[SourceQuality "1"]
[TimeControl "60/7800+30:0"]

1. e4 {[%emt 0:00:00]} Nf6 {[%emt 0:00:00]} 2. e5 {[%emt 0:02:37]} Nd5 {[%emt 0:00:00]} 3. Nf3 {[%emt 0:01:41]} d6 {[%emt 0:00:36]} 4. c4 {[%emt 0:06:12]} Nb6 {[%emt 0:00:11]} 5. d4 {[%emt 0:05:21]} Bg4 {[%emt 0:00:58]} 6. exd6 {[%emt 0:04:23]} exd6 {[%emt 0:01:34]} 7. Be2 {[%emt 0:01:27]} N8d7 {[%emt 0:01:49]} 8. O-O {[%emt 0:00:47]} Be7 {[%emt 0:00:30]} 9. Nbd2 {[%emt 0:02:27]} O-O {[%emt 0:05:04]} 10. b3 {[%emt 0:04:28]} a5 {[%emt 0:06:07]} 11. Bb2 {[%emt 0:01:56]} a4 {[%emt 0:00:34]} 12. Rc1 {[%emt 0:06:06]} Bf6 {[%emt 0:10:07]} 13. Ne4 {[%emt 0:00:53]} Be7 {[%emt 0:00:22]} 14. Ng3 {[%emt 0:01:01]} Nf6 {[%emt 0:03:52]} 15. h3 {[%emt 0:00:59]} Bd7 {[%emt 0:01:02]} 16. Bd3 {[%emt 0:01:34]} Qc8 {[%emt 0:03:47]} 17. Re1 {[%emt 0:02:24]} Re8 {[%emt 0:00:17]} 18. Qd2 {[%emt 0:00:26]} h6 {[%emt 0:03:41]} 19. Bb1 {[%emt 0:04:35]} Nh7 {[%emt 0:10:23]} 20. Ne4 {[%emt 0:13:09]} g5 {[%emt 0:12:50]} 21. c5 {[%emt 0:01:40]} Nd5 {[%emt 0:04:34]} 22. cxd6 {[%emt 0:00:16]} Bd8 {[%emt 0:00:03]} 23. dxc7 {[%emt 0:03:45]} Be7 {[%emt 0:01:43]} 24. Nc3 {[%emt 0:05:27]} Bxh3 {[%emt 0:15:45]} 25. Nxd5 {[%emt 0:07:05]} Qg4 {[%emt 0:00:13]} 26. Ne3 {[%emt 0:00:15]} Qf4 {[%emt 0:02:15]} 27. Ne5 {[%emt 0:08:54]} Bc8 {[%emt 0:01:49]} 28. Qd3 {[%emt 0:00:54]} Nf6 {[%emt 0:01:51]} 29. Qd1 1-0

[Event "7. Arber-Senioren-Cup 2019"]
[Site "Bodenmais"]
[Date "2019.08.04"]
[Round "9.19"]
[White "Wacker, Manfred"]
[Black "Halli, Gerhard"]
[Result "1/2-1/2"]
[ECO "E06"]
[WhiteElo "1741"]
[BlackElo "1955"]
[Annotator "NA"]
[PlyCount "25"]
[EventDate "2019.07.27"]
[EventType "swiss"]
[EventCountry "GER"]
[SourceTitle "playchess.com"]
[Source "ChessBase"]
[SourceQuality "1"]
[TimeControl "60/7800+30:0"]

1. d4 {[%emt 0:00:00]} d5 {[%emt 0:01:01]} 2. c4 {[%emt 0:00:00]} e6 {[%emt 0:00:49]} 3. Nf3 {[%emt 0:00:16]} Nf6 {[%emt 0:01:58]} 4. g3 {[%emt 0:02:03]} Be7 {[%emt 0:00:35]} 5. Bg2 {[%emt 0:00:28]} O-O {[%emt 0:02:32]} 6. O-O {[%emt 0:00:01]} b6 {[%emt 0:01:54]} 7. cxd5 {[%emt 0:01:05]} exd5 {[%emt 0:00:01]} 8. Nc3 {[%emt 0:00:49]} Bb7 {[%emt 0:00:24]} 9. Bf4 {[%emt 0:01:45]} Nbd7 {[%emt 0:00:59]} 10. Nb5 {[%emt 0:02:15]} c5 {[%emt 0:01:15]} 11. Bc7 {[%emt 0:03:52]} Qc8 {[%emt 0:00:54]} 12. Bd6 {[%emt 0:01:14]} Qd8 {[%emt 0:00:38]} 13. Bc7 {[%emt 0:01:59]} 1/2-1/2

[Event "7. Arber-Senioren-Cup 2019"]
[Site "Bodenmais"]
[Date "2019.08.04"]
[Round "9.21"]
[White "Kirschner, Torsten"]
[Black "Meul, Willi"]
[Result "1/2-1/2"]
[ECO "D30"]
[WhiteElo "1767"]
[BlackElo "1904"]
[Annotator "NA"]
[PlyCount "29"]
[EventDate "2019.07.27"]
[EventType "swiss"]
[EventCountry "GER"]
[SourceTitle "playchess.com"]
[Source "ChessBase"]
[SourceQuality "1"]
[TimeControl "60/7800+30:0"]

1. d4 {[%emt 0:00:00]} d5 {[%emt 0:00:00]} 2. c4 {[%emt 0:00:00]} e6 {[%emt 0:00:00]} 3. Nf3 {[%emt 0:00:30]} Nd7 {[%emt 0:00:54]} 4. g3 {[%emt 0:01:05]} Ngf6 {[%emt 0:01:00]} 5. Bg2 {[%emt 0:00:30]} c6 {[%emt 0:01:01]} 6. cxd5 {[%emt 0:01:21]} exd5 {[%emt 0:00:12]} 7. O-O {[%emt 0:00:20]} Bd6 {[%emt 0:00:57]} 8. Nc3 {[%emt 0:01:59]} O-O {[%emt 0:01:37]} 9. Qc2 {[%emt 0:01:46]} Re8 {[%emt 0:01:39]} 10. Bd2 {[%emt 0:04:59]} h6 {[%emt 0:03:17]} 11. Rfe1 {[%emt 0:01:32]} Ne4 {[%emt 0:03:56]} 12. Rad1 {[%emt 0:02:37]} Ndf6 {[%emt 0:02:37]} 13. Bc1 {[%emt 0:18:38]} Bf5 {[%emt 0:03:42]} 14. Qb3 {[%emt 0:04:49]} Qb6 {[%emt 0:03:07]} 15. Qxb6 {[%emt 0:03:06]} 1/2-1/2

[Event "7. Arber-Senioren-Cup 2019"]
[Site "Bodenmais"]
[Date "2019.08.04"]
[Round "9.22"]
[White "Wolff, Peter"]
[Black "Auterhoff, Juergen"]
[Result "1-0"]
[ECO "A20"]
[WhiteElo "1915"]
[BlackElo "1673"]
[Annotator "NA"]
[PlyCount "73"]
[EventDate "2019.07.27"]
[EventType "swiss"]
[EventCountry "GER"]
[SourceTitle "playchess.com"]
[Source "ChessBase"]
[SourceQuality "1"]
[TimeControl "60/7800+30:0"]

1. c4 {[%emt 0:00:00]} e5 {[%emt 0:00:00]} 2. g3 {[%emt 0:00:00]} Nf6 {[%emt 0:00:00]} 3. Bg2 {[%emt 0:00:00]} Nc6 {[%emt 0:00:27]} 4. Nc3 {[%emt 0:00:00]} Bc5 {[%emt 0:03:45]} 5. e3 {[%emt 0:00:06]} O-O {[%emt 0:00:44]} 6. Nge2 {[%emt 0:00:07]} b6 {[%emt 0:05:20]} 7. a3 {[%emt 0:10:12]} a5 {[%emt 0:03:51]} 8. Rb1 {[%emt 0:12:03]} Rb8 {[%emt 0:08:14]} 9. O-O {[%emt 0:00:58]} Bb7 {[%emt 0:04:27]} 10. d4 {[%emt 0:00:43]} exd4 {[%emt 0:03:38]} 11. exd4 {[%emt 0:00:12]} Be7 {[%emt 0:03:40]} 12. Bf4 {[%emt 0:18:29]} d6 {[%emt 0:02:05]} 13. Re1 {[%emt 0:19:43]} Re8 {[%emt 0:06:42]} 14. Nb5 {[%emt 0:00:47]} Qd7 {[%emt 0:13:55]} 15. Rc1 {[%emt 0:15:00]} Nd8 {[%emt 0:05:23]} 16. d5 {[%emt 0:03:24]} Ba6 {[%emt 0:09:31]} 17. Ned4 {[%emt 0:02:45]} Bxb5 {[%emt 0:02:32]} 18. cxb5 {[%emt 0:00:29]} h6 {[%emt 0:07:01]} 19. h4 {[%emt 0:11:09]} Rc8 {[%emt 0:04:33]} 20. Qd3 {[%emt 0:06:00]} Nb7 {[%emt 0:02:44]} 21. b4 {[%emt 0:00:33]} axb4 {[%emt 0:00:40]} 22. axb4 {[%emt 0:00:08]} Bf8 {[%emt 0:01:26]} 23. Rxe8 {[%emt 0:18:13]} Qxe8 {[%emt 0:00:27]} 24. Bh3 {[%emt 0:00:34]} Nd7 {[%emt 0:01:38]} 25. Qf5 {[%emt 0:01:17]} Rd8 {[%emt 0:04:07]} 26. Rxc7 {[%emt 0:01:08]} g6 {[%emt 0:05:08]} 27. Qc2 {[%emt 0:01:47]} Nbc5 {[%emt 0:12:05]} 28. bxc5 {[%emt 0:00:24]} bxc5 {[%emt 0:00:20]} 29. Nc6 {[%emt 0:03:35]} Qe1+ {[%emt 0:01:14]} 30. Kh2 {[%emt 0:03:22]} Re8 {[%emt 0:01:58]} 31. Qd2 {[%emt 0:02:06]} Qxd2 {[%emt 0:05:02]} 32. Bxd2 {[%emt 0:00:03]} Re2 {[%emt 0:00:10]} 33. Be3 {[%emt 0:00:34]} Nb6 {[%emt 0:01:21]} 34. Bg2 {[%emt 0:01:40]} Nc4 {[%emt 0:01:21]} 35. Bf1 {[%emt 0:00:57]} Rc2 {[%emt 0:01:22]} 36. Bxc4 {[%emt 0:00:24]} Rxc4 {[%emt 0:00:03]} 37. b6 {[%emt 0:00:43]} 1-0

[Event "7. Arber-Senioren-Cup 2019"]
[Site "Bodenmais"]
[Date "2019.08.04"]
[Round "9.23"]
[White "Riha, Peter"]
[Black "Wittkugel, Friedhelm"]
[Result "1/2-1/2"]
[ECO "D00"]
[WhiteElo "1720"]
[BlackElo "1920"]
[Annotator "NA"]
[PlyCount "88"]
[EventDate "2019.07.27"]
[EventType "swiss"]
[EventCountry "GER"]
[SourceTitle "playchess.com"]
[Source "ChessBase"]
[SourceQuality "1"]
[TimeControl "60/7800+30:0"]

1. d4 {[%emt 0:00:00]} d5 {[%emt 0:00:00]} 2. Bf4 {[%emt 0:00:00]} e6 {[%emt 0:00:08]} 3. e3 {[%emt 0:00:00]} Be7 {[%emt 0:01:20]} 4. Nf3 {[%emt 0:01:31]} h5 {[%emt 0:01:06]} 5. h3 {[%emt 0:03:04]} Nd7 {[%emt 0:01:14]} 6. Nbd2 {[%emt 0:01:35]} Ngf6 {[%emt 0:01:51]} 7. Bd3 {[%emt 0:03:57]} c5 {[%emt 0:00:42]} 8. c3 {[%emt 0:00:11]} Qb6 {[%emt 0:02:23]} 9. Rb1 {[%emt 0:01:57]} c4 {[%emt 0:03:10]} 10. Bc2 {[%emt 0:00:47]} Qa6 {[%emt 0:00:46]} 11. a3 {[%emt 0:03:36]} b5 {[%emt 0:01:53]} 12. e4 {[%emt 0:07:07]} dxe4 {[%emt 0:01:45]} 13. Nxe4 {[%emt 0:00:11]} Nxe4 {[%emt 0:01:38]} 14. Bxe4 {[%emt 0:00:12]} Bb7 {[%emt 0:00:10]} 15. Bxb7 {[%emt 0:03:27]} Qxb7 {[%emt 0:00:29]} 16. Qe2 {[%emt 0:14:22]} Qd5 {[%emt 0:01:03]} 17. Rd1 {[%emt 0:10:43]} Bf6 {[%emt 0:02:03]} 18. h4 {[%emt 0:04:53]} Rd8 {[%emt 0:03:40]} 19. Rd2 {[%emt 0:06:06]} Nf8 {[%emt 0:07:57]} 20. Bg5 {[%emt 0:11:32]} Ng6 {[%emt 0:08:22]} 21. Qe3 {[%emt 0:06:31]} Qf5 {[%emt 0:01:45]} 22. O-O {[%emt 0:04:05]} Rd5 {[%emt 0:01:46]} 23. Re1 {[%emt 0:02:11]} O-O {[%emt 0:02:37]} 24. Bxf6 {[%emt 0:08:09]} Qxf6 {[%emt 0:01:29]} 25. g3 {[%emt 0:00:39]} Rfd8 {[%emt 0:02:22]} 26. Rde2 {[%emt 0:04:50]} Rf5 {[%emt 0:01:25]} 27. Ng5 {[%emt 0:02:30]} Rdd5 {[%emt 0:01:08]} 28. f4 {[%emt 0:02:36]} Ne7 {[%emt 0:04:14]} 29. Qf3 {[%emt 0:01:23]} Rxg5 {[%emt 0:09:46]} 30. hxg5 {[%emt 0:00:28]} Qg6 {[%emt 0:01:00]} 31. Re5 {[%emt 0:01:46]} Rxe5 {[%emt 0:00:50]} 32. dxe5 {[%emt 0:00:12]} Nd5 {[%emt 0:02:28]} 33. Qe4 {[%emt 0:01:09]} Kh7 {[%emt 0:01:51]} 34. Qxg6+ {[%emt 0:00:21]} Kxg6 {[%emt 0:00:03]} 35. Kf2 {[%emt 0:01:19]} Kf5 {[%emt 0:00:26]} 36. Kf3 {[%emt 0:01:13]} a5 {[%emt 0:03:33]} 37. Rg1 {[%emt 0:06:27]} b4 {[%emt 0:00:49]} 38. axb4 {[%emt 0:01:39]} axb4 {[%emt 0:00:17]} 39. cxb4 {[%emt 0:00:18]} Nxb4 {[%emt 0:00:14]} 40. Rc1 {[%emt 0:01:40]} Nd3 {[%emt 0:00:08]} 41. Rxc4 {[%emt 0:00:19]} Nxb2 {[%emt 0:00:36]} 42. Rc7 {[%emt 0:00:50]} Kg6 {[%emt 0:00:04]} 43. g4 {[%emt 0:01:45]} hxg4+ {[%emt 0:00:30]} 44. Kxg4 {[%emt 0:00:07]} Nd3 {[%emt 0:00:34]} 1/2-1/2